Cogmind - Beta 10.2 @@@ ROGUE MODE // 2021.02.20 @ 18:29:36 Player: aperiodic Result: Destroyed by as-16262 with Assembled Blade Performance ------------- Evolutions (0) 0 Regions Visited (2) 400 Robots Destroyed (7) 35 Value Destroyed (46) 46 Prototype IDs (0) 0 Alien Tech Used (0) 0 Bonus (0) 0 TOTAL SCORE: 481 Bonus ------- None Cogmind --------- Core Integrity 0/250 Matter 236/300 Energy 100/100 System Corruption 7% Temperature Cool (0) Movement Core (50) Location -10/Mines Parts ------- > --- POWER (1) -------- (None) > --- PROPULSION (2) --- (None) > --- UTILITY (2) ------ (None) > --- WEAPON (2) ------- Assault Rifle > --- INVENTORY (4) ---- Wheel Medium Storage Unit Assault Rifle Mining Laser Peak State ------------ > --- POWER ------------ Ion Engine > --- PROPULSION ------- Wheel Wheel > --- UTILITY ---------- Large Storage Unit > --- WEAPON ----------- Light EM Pulse Cannon Assault Rifle > --- INVENTORY -------- Ion Engine Light Treads Light Treads Medium Storage Unit Large Storage Unit Medium Laser Assault Rifle Assault Rifle Assault Rifle Mining Laser [Rating: 8] Favorites ----------- Power Light Ion Engine Engine Light Ion Engine Propulsion Wheel Treads Light Treads Wheel Wheel Utility Large Storage Unit Storage Large Storage Unit Weapon Assault Rifle Energy Gun EM Pulse Gun Energy Cannon Light EM Pulse Cannon Ballistic Gun Assault Rifle Build | -11 -10 -10 ------- Run | Scr Mat Min Slots Evolved . | . . . Power . | . . . Propulsion . | . . . Utility . | . . . Weapon . | . . . Parts Attached 19 | 7 8 4 Power 2 | 1 1 . Engine 2 | 1 1 . Core . | . . . Reactor . | . . . Propulsion 9 | 3 4 2 Treads 4 | . 2 2 Leg . | . . . Wheel 5 | 3 2 . Hover . | . . . Flight . | . . . Utility 2 | 1 1 . Device . | . . . Storage 2 | 1 1 . Processor . | . . . Hackware . | . . . Protection . | . . . Artifact . | . . . Weapon 6 | 2 2 2 Energy Gun 1 | 1 . . Energy Cannon 1 | . 1 . Ballistic Gun 4 | 1 1 2 Ballistic Cannon . | . . . Launcher . | . . . Special Weapon . | . . . Impact Weapon . | . . . Slashing Weapon . | . . . Piercing Weapon . | . . . Special Melee Weapon . | . . . Unidentified Prototypes . | . . . Parts Lost 5 | . . 5 Power 1 | . . 1 Propulsion 2 | . . 2 Utility . | . . . Weapon 2 | . . 2 Highest Loss Streak 5 | . . 5 Average Slot Usage (%) 78 | . 85 67 Engine 12 | . 14 9 Treads 5 | . 7 3 Wheel 19 | . 21 18 Storage 13 | . 14 10 Energy Gun 6 | . 10 . Energy Cannon 6 | . 4 9 Ballistic Gun 14 | . 14 14 Naked Turns . | . . . Heaviest Build 27 | 10 27 27 Greatest Support 40 | 26 40 20 Greatest Overweight (x) 1 | 1 1 1 Average Overweight (x) . | . . . Largest Inventory Capacity 12 | 6 12 10 Average Capacity 8 | 5 9 8 Most Carried 10 | 6 10 10 Average Carried 7 | 4 8 8 Final Capacity 10 | 6 10 4 Final Carried 10 | 6 10 4 Class Distribution -------------------- 100% | Mutant Dominant Class ---------------- Mutant | -10/Materials Mutant | -10/Mines Resources | -11 -10 -10 ----------- Run | Scr Mat Min Matter Collected 333 | 268 30 35 Remotely . | . . . Salvage Created 262 | 146 84 32 Parts 16 | 7 9 . Haulers Intercepted 1 | . 1 . Recyclers Shooed 1 | . . 1 Parts Field Recycled . | . . . Retrieved Matter . | . . . Parts Self-Destructed . | . . . Prevented . | . . . Kills | -11 -10 -10 ------- Run | Scr Mat Min Combat Hostiles Destroyed 2 | . . 2 Guns 1 | . . 1 Cannons 1 | . . 1 Classes Destroyed 6 | 2 3 1 Worker 1 | . 1 . Tunneler 3 | 3 . . Hauler 1 | . 1 . Recycler 1 | 1 . . Watcher 1 | . 1 . Assembled 2 | . . 2 Best Kill Streak 3 | 3 1 2 Combat Bots Only 2 | . . 2 Max Kills in Single Turn 1 | 1 1 1 Gunslinging . | . . . Exploded . | . . . Melee . | . . . Uniques/NPCs Destroyed . | . . . Combat | -11 -10 -10 -------- Run | Scr Mat Min Damage Taken 932 | . . 932 Core 264 | . . 264 Absorbed by Shields . | . . . Core Remaining (%) 100 | 100 . . Volleys Fired 21 | 11 4 6 Largest 2 | 2 2 2 Hottest 76 | 60 76 76 Shots Fired 42 | 22 8 12 Gun 38 | 22 7 9 Cannon 4 | . 1 3 Launcher . | . . . Special . | . . . Kinetic 24 | 11 4 9 Thermal . | . . . Explosive . | . . . Electromagnetic 18 | 11 4 3 Robot Hit Streak 18 | 5 12 18 Robot Miss Streak 2 | 1 . 2 Penetration Max . | . . . Secondary Targets 1 | . . 1 Max Gunslinging Chain 1 | . . 1 Shots Hit Robots 32 | 16 7 9 Core Hits 15 | 6 3 6 Critical Hits . | . . . Critical Kills . | . . . Critical Parts Destroyed . | . . . Melee Attacks . | . . . Impact . | . . . Slashing . | . . . Piercing . | . . . Sneak Attacks . | . . . Combat Hostiles . | . . . Follow-up Attacks . | . . . Damage Inflicted 482 | 162 140 180 Guns 335 | 162 74 99 Cannons 82 | . 25 57 Explosions 41 | . 41 . Melee . | . . . Ramming 24 | . . 24 Kinetic 173 | 54 20 99 Thermal 41 | . 41 . Explosive . | . . . Electromagnetic 244 | 108 79 57 Impact . | . . . Slashing . | . . . Piercing . | . . . Highest Corruption 7 | . . 7 Average Corruption 6 | . . 6 Corruption Purged . | . . . Effects 2 | . . 2 Heat Flow Errors 1 | . . 1 Parts Rejected 1 | . . 1 Overload Shots . | . . . Overflow Damage . | . . . Projectiles . | . . . Explosions . | . . . Melee . | . . . Knockbacks . | . . . Impact . | . . . Kinetic . | . . . Secondary . | . . . Self-Inflicted Damage 11 | . . 11 Shots . | . . . Rammed 4 | . . 4 Targets Rammed 4 | . . 4 Kicked . | . . . Crushed . | . . . Highest Temperature 239 | 20 20 239 Average Temperature 84 | 15 12 130 Received Heat Transfer 440 | . . 440 Siege Activations . | . . . Robots Corrupted . | . . . Combat Hostiles . | . . . Parts Fried 2 | 2 . . Impact Corruptions . | . . . Robots Melted . | . . . Combat Hostiles . | . . . Parts Melted . | . . . Heat Transferred . | . . . Parts Sabotaged . | . . . Parts Stolen . | . . . Parts Stripped . | . . . Power Chain Reactions 1 | . 1 . Missiles Intercepted . | . . . Alert | -11 -10 -10 ------- Run | Scr Mat Min Peak Influence 62 | 20 62 24 Initial 24 | . 13 24 Average 25 | 6 39 17 Maximum Alert Level . | . . . Low Security (%) 100 | 100 100 100 Level 1 . | . . . Level 2 . | . . . Level 3 . | . . . Level 4 . | . . . Level 5 . | . . . High Security . | . . . Max Security . | . . . Squads Dispatched 1 | . 1 . Investigation 1 | . 1 . Extermination . | . . . Reinforcement . | . . . Assault . | . . . Garrison . | . . . Intercept . | . . . Construction Impeded . | . . . Haulers Reinforced . | . . . Stealth | -11 -10 -10 --------- Run | Scr Mat Min Distress Signals . | . . . Communications Jammed . | . . . Distress Signals . | . . . Times Spotted 15 | . 2 13 Peak Tracking Total 13 | . 1 13 Tactical Retreats 3 | . . 3 Traps | -11 -10 -10 ------- Run | Scr Mat Min Traps Triggered . | . . . Indirectly . | . . . Trap Hack Attempts . | . . . Triggered . | . . . Disarmed . | . . . Reprogrammed . | . . . Reused . | . . . Traps Extracted . | . . . Installed . | . . . Triggered . | . . . Machines | -11 -10 -10 ---------- Run | Scr Mat Min Machines Disabled . | . . . Max in Single Turn . | . . . Machines Sabotaged . | . . . Garrisons Compromised . | . . . Overloaded Fab Kills . | . . . Fab Network Shutdowns . | . . . Hacking | -11 -10 -10 --------- Run | Scr Mat Min Machines Accessed 1 | . 1 . Terminals 1 | . 1 . Fabricators . | . . . Repair Stations . | . . . Recycling Units . | . . . Scanalyzers . | . . . Garrison Access . | . . . Total Hacks 4 | . 4 . Successful . | . . . Failed 4 | . 4 . Catastrophic 1 | . 1 . Database Lockouts . | . . . Manual . | . . . Terminals 4 | . 4 . Fabricators . | . . . Repair Stations . | . . . Recycling Units . | . . . Scanalyzers . | . . . Garrison Access . | . . . Terminal Hacks . | . . . Fabricator Hacks . | . . . Repair Station Hacks . | . . . Recycling Unit Hacks . | . . . Scanalyzer . | . . . Garrison Access Hacks . | . . . Unauthorized Hacks . | . . . Terminals . | . . . Fabricators . | . . . Repair Stations . | . . . Recycling Units . | . . . Scanalyzers . | . . . Garrison Access . | . . . Data Cores Recovered . | . . . Used . | . . . Hacking Detections 1 | . 1 . Full Trace Events 1 | . 1 . Feedback Events . | . . . Feedback Blocked . | . . . Robot Schematics Acquired . | . . . Robots Built . | . . . Matter . | . . . Time . | . . . Total Robot Build Rating . | . . . Part Schematics Acquired . | . . . Parts Built . | . . . Matter . | . . . Time . | . . . Total Part Build Rating . | . . . Parts Repaired . | . . . Time . | . . . Parts Recycled . | . . . Recycled Matter . | . . . Retrieved Matter . | . . . Retrieved Components . | . . . Parts Scanalyzed . | . . . Part Schematics Acquired . | . . . Parts Damaged . | . . . Bothacking | -11 -10 -10 ------------ Run | Scr Mat Min Used RIF Installer . | . . . Robots Hacked . | . . . Non-combat . | . . . Combat . | . . . Robot Hacks Applied . | . . . Relay Couplers Released . | . . . Robots Rewired . | . . . Allies Hacked . | . . . Hacks Repelled . | . . . Allies | -11 -10 -10 -------- Run | Scr Mat Min Total Allies . | . . . Largest Group . | . . . Highest-Rated Group . | . . . Highest-Rated Ally . | . . . Total Orders . | . . . Ally Attacks . | . . . Total Damage . | . . . Kills . | . . . Allies Corrupted . | . . . Allies Melted . | . . . Intel | -11 -10 -10 ------- Run | Scr Mat Min Robot Analysis Total . | . . . Derelict Logs Recovered . | . . . Drone Launches . | . . . Drone Recoveries . | . . . Exploration | -11 -10 -10 ------------- Run | Scr Mat Min Turns Passed 573 | 124 279 170 Spaces Moved 532 | 95 249 188 Core 97 | 30 . 67 Treads 34 | . 34 . Legs . | . . . Wheels 401 | 65 215 121 Hover . | . . . Flight . | . . . Fastest Speed 50 | 50 80 50 Average Speed 87 | 79 98 75 Slowest Speed 160 | 100 160 90 Overloaded Moves . | . . . Propulsion Burnouts . | . . . Robots Hopped . | . . . Cave-ins Triggered . | . . . Exploration Rate (%) 29 | 5 32 50 Regions Visited 2 Branch Regions 1 Pre-discovered Areas . | . . . Known Exits Taken . | . . . Unknown Exits Taken 2 | 1 1 . Scrap Searched . | . . . Spaces Dug . | . . . Terrain Destroyed 5 | . 5 . Melee . | . . . Projectile . | . . . AOE 5 | . 5 . Terrain Rammed . | . . . Walls Destroyed . | . . . Machines Disabled . | . . . Actions | -11 -10 -10 --------- Run | Scr Mat Min Total 600 | 121 276 203 Wait 4 | . 4 . Move 530 | 94 248 188 Hop . | . . . Pick Up 13 | 7 6 . Fast Attach 8 | 6 2 . Attach 2 | . . 2 Detach . | . . . Swap 9 | 1 6 2 Drop 9 | 2 6 1 Fire 21 | 11 4 6 Melee . | . . . Ram 4 | . . 4 Kick . | . . . Crush . | . . . Escape Stasis . | . . . Rewire . | . . . Trap . | . . . Miscellaneous . | . . . Route ------- -11/Scrapyard -10/Materials (discovered 2 exits: [*Min x2]) -10/Mines History --------- Turn | Location | Event 5 | -11/Scrapyard | Discovered new exit (range 14) 125 | -11/Scrapyard | Entered Materials 284 | -10/Materials | Discovered new exit (range 8) 322 | -10/Materials | Build established: Mutant 367 | -10/Materials | Discovered new exit (range 16) 404 | -10/Materials | Entered Mines 465 | -10/Mines | Assembled infested the area 536 | -10/Mines | Core integrity fell below 50% 538 | -10/Mines | Core integrity fell below 20% 565 | -10/Mines | Lost 5 parts (1p2n2w) 574 | -10/Mines | Destroyed by as-16262 with Assembled Blade Last Messages --------------- 00523_ Lgt. EM Pulse Cannon destroyed. 00523_ System corrupted by crushing effect (+3). 00529_ Ion Engine destroyed. 00529_ System corrupted by crushing effect (+4). 00530_ System corrupted: Assault Rifle rejected. 00530_ Lgt. Treads destroyed. 00533_ as-03915 destroyed. 00533_ Switching to secondary target: as-85173. 00534_ Assault Rifle destroyed. 00536_ Dropped Lrg. Storage Unit. 00537_ Acquired 14 matter. 00543_ Acquired 21 matter. 00547_ System corrupted: Heat flow error (+232). 00554_ Slammed into R-06 Scavenger. 00565_ Slammed into U-05 Engineer. 00565_ Destabilizing: System interference. 00565_ Assault Rifle temporarily disabled. 00566_ Slammed into U-05 Engineer. 00568_ K-01 Serf system corrupted by crushing effect. 00573_ Slammed into as-16262. Map ----- +----------------------------------------------------+ | | | | | | | | | | | | | | | | | | | | | | | | | | | | | ??????????????????????????????????? | | ??????????????????????????????????? | | ??????????????????????????????????? | | ????????????????##????????????????? | | ????????????????? ???????????????? | | ?????????????????? ###????????????? | | ??????????????????? ????????????? | | ???????????????????# ????????????? | | ???????????????????# ????????????? | | ???????????????????# ##??????????? | | ???????????????????# ########???? | | ????????????????????#== a@ #???? | | ????????????????????#%a ##### #???? | | ????????????????????#! ##??# #???? | | ????????????????????## ##?# #???? | | ????????############## #?# #???? | | ????????# #?# #???? | | ????????# ############ ##?# ???? | | ????????# #?####?????####?? ##???? | | ???????## ## ##??????????#?????? | | ??????## =%! #????????????????? | | ??????# #????????????????? | | ??????# ##????????????????? | | ??????# ###?????????????????? | | ??????## ##???????????????????? | | ???????## #????????????????????? | | ????????# ##???????????????????? | | ????????# ##??????????????????? | | ????????# ###????????????????? | | ????##### ##???????????????? | | ????# % #???????????????? | | ????# ##???????????????? | | ????# ### #????????????????? | | ??? ???# ##????????????????? | | ??##???## ###?????????????????? | | ??????##= ##???????????????????? | +----------------------------------------------------+ Best States ------------- Heat Dissipation 25 Energy Generation 10 Energy Capacity 250 Matter Stores 287 Matter Capacity 300 Sight Range 16 Terrain Scan Density 10 Evasion (%) 50 Recoil Reduction 2 Item Schematics ----------------- None Robot Schematics ------------------ None Fabricated ------------ Nothing Alien Tech Used ----------------- None Achievements -------------- None Challenges ------------ None Game ------ Seed TiamatMinesnifferProcessor Manual? 0 Play Time 00:10:06 Cumulative 338.0 hours Start 2021.02.20 @ 18:22:34 End 2021.02.20 @ 18:29:36 Sessions 1 Manual Loads 0 Difficulty Rogue Special Mode None Game No. 119 Rogue 115 Adventurer 4 Explorer 0 Win Type - Total 8 Types 4/1/3/0/0/0/0/0/0 Lore% 75 Gallery% 80 Achievement% 64 Wizard Run 0 Options --------- ASCII 1 Keyboard 0 Movement Arrows Keybinds 0 Fullscreen 1 Font 18/SmallcapsGlow Map View 76x50 Tactical HUD 1 Map Filters NONE Filters NONE Steam 1 RUN: 1ecb1644-202d-47b5-99cc-875d73a93d0c